[Event "Titled Tuesday Blitz May 31 Early 2022"]
[White "Manukian, Artak"]
[Black "Alinasab, Mobina"]
[WhiteFideId "13301373"]
[BlackFideId "12528897"]
[WhiteElo "2540"]
[BlackElo "2031"]
[Result "1-0"]
[Round "08"]
[TimeControl "180+1"]
[Date "2022.06.01"]
[WhiteClock "0:00:05"]
[BlackClock "0:00:03"]

1. e4 {[%clk 0:03:00]}  c5 {[%clk 0:02:59]} 2. Nf3 {[%clk 0:03:00]}  e6 {[%clk 0:03:00]} 3. c3 {[%clk 0:03:00]}  d5 {[%clk 0:02:59]} 4. e5 {[%clk 0:03:01]}  d4 {[%clk 0:02:55]} 5. cxd4 {[%clk 0:02:59]}  cxd4 {[%clk 0:02:56]} 6. Bb5+ {[%clk 0:02:59]}  Nc6 {[%clk 0:02:56]} 7. Bxc6+ {[%clk 0:03:00]}  bxc6 {[%clk 0:02:57]} 8. Qa4 {[%clk 0:03:00]}  Ne7 {[%clk 0:02:50]} 9. Nxd4 {[%clk 0:02:59]}  Qd5 {[%clk 0:02:48]} 10. Nf3 {[%clk 0:02:55]}  Nf5 {[%clk 0:02:22]} 11. Nc3 {[%clk 0:02:53]}  Qd7 {[%clk 0:02:14]} 12. O-O {[%clk 0:02:38]}  Be7 {[%clk 0:02:09]} 13. d4 {[%clk 0:02:34]}  O-O {[%clk 0:02:08]} 14. Rd1 {[%clk 0:02:27]}  Rd8 {[%clk 0:02:06]} 15. Bg5 {[%clk 0:02:05]}  f6 {[%clk 0:02:04]} 16. exf6 {[%clk 0:01:54]}  gxf6 {[%clk 0:02:05]} 17. Bf4 {[%clk 0:01:55]}  a5 {[%clk 0:01:57]} 18. h3 {[%clk 0:01:47]}  Ba6 {[%clk 0:01:56]} 19. Qc2 {[%clk 0:01:36]}  Qa7 {[%clk 0:01:38]} 20. Qe4 {[%clk 0:01:32]}  Qd7 {[%clk 0:01:35]} 21. Rac1 {[%clk 0:01:28]}  Rac8 {[%clk 0:01:21]} 22. Na4 {[%clk 0:01:23]}  Qd5 {[%clk 0:01:15]} 23. Qxd5 {[%clk 0:01:09]}  cxd5 {[%clk 0:01:16]} 24. Bc7 {[%clk 0:01:04]}  Rf8 {[%clk 0:00:39]} 25. Bxa5 {[%clk 0:01:03]}  Be2 {[%clk 0:00:36]} 26. Nb6 {[%clk 0:00:48]}  Rxc1 {[%clk 0:00:28]} 27. Rxc1 {[%clk 0:00:48]}  Bxf3 {[%clk 0:00:29]} 28. gxf3 {[%clk 0:00:42]}  Nxd4 {[%clk 0:00:29]} 29. Kf1 {[%clk 0:00:41]}  Nxf3 {[%clk 0:00:28]} 30. Rc8 {[%clk 0:00:35]}  d4 {[%clk 0:00:19]} 31. Ke2 {[%clk 0:00:31]}  Ng5 {[%clk 0:00:19]} 32. h4 {[%clk 0:00:24]}  Ne4 {[%clk 0:00:18]} 33. Rxf8+ {[%clk 0:00:22]}  Kxf8 {[%clk 0:00:19]} 34. b4 {[%clk 0:00:20]}  Nc3+ {[%clk 0:00:16]} 35. Kd3 {[%clk 0:00:20]}  Nxa2 {[%clk 0:00:16]} 36. b5 {[%clk 0:00:18]}  e5 {[%clk 0:00:15]} 37. Nd5 {[%clk 0:00:17]}  Nc1+ {[%clk 0:00:13]} 38. Kc2 {[%clk 0:00:16]}  Ba3 {[%clk 0:00:08]} 39. Bb4+ {[%clk 0:00:11]}  Bxb4 {[%clk 0:00:07]} 40. Nxb4 {[%clk 0:00:12]}  Ne2 {[%clk 0:00:04]} 41. b6 {[%clk 0:00:12]}  d3+ {[%clk 0:00:04]} 42. Kxd3 {[%clk 0:00:11]}  Nf4+ {[%clk 0:00:04]} 43. Ke4 {[%clk 0:00:10]}  Ne6 {[%clk 0:00:04]} 44. Kd5 {[%clk 0:00:10]}  Nd8 {[%clk 0:00:03]} 45. Kd6 {[%clk 0:00:09]}  Ke8 {[%clk 0:00:03]} 46. Kc7 {[%clk 0:00:09]}  Ne6+ {[%clk 0:00:04]} 47. Kc8 {[%clk 0:00:09]}  Nc5 {[%clk 0:00:03]} 48. Kc7 {[%clk 0:00:07]}  Ne6+ {[%clk 0:00:03]} 49. Kd6 {[%clk 0:00:07]}  Nd8 {[%clk 0:00:03]} 50. Nd5 {[%clk 0:00:07]}  f5 {[%clk 0:00:02]} 51. Kxe5 {[%clk 0:00:07]}  Nb7 {[%clk 0:00:02]} 52. Kxf5 {[%clk 0:00:07]}  Kf7 {[%clk 0:00:03]} 53. Ke5 {[%clk 0:00:07]}  h6 {[%clk 0:00:03]} 54. Ne3 {[%clk 0:00:06]}  Ke7 {[%clk 0:00:03]} 55. Nf5+ {[%clk 0:00:06]}  Kf7 {[%clk 0:00:03]} 56. Nxh6+ {[%clk 0:00:06]}  Kg6 {[%clk 0:00:04]} 57. Nf5 {[%clk 0:00:07]}  Kh5 {[%clk 0:00:04]} 58. Kd5 {[%clk 0:00:06]}  Kg4 {[%clk 0:00:04]} 59. Nd6 {[%clk 0:00:05]}  Nd8 {[%clk 0:00:03]} 60. Ke5 {[%clk 0:00:02]}  Kxh4 {[%clk 0:00:01]} 61. b7 {[%clk 0:00:02]}  Nxb7 {[%clk 0:00:01]} 62. Nxb7 {[%clk 0:00:03]}  Kg4 {[%clk 0:00:01]} 63. f4 {[%clk 0:00:04]}  Kf3 {[%clk 0:00:02]} 64. f5 {[%clk 0:00:04]}  Ke2 {[%clk 0:00:03]} 65. f6 {[%clk 0:00:05]} 1-0


[Site "https://www.chess.com"]

[Event "Titled Tuesday Blitz May 31 Early 2022"]
[White "Martinez Alcantara, Jose Eduardo"]
[Black "Harsha Bharathakoti"]
[WhiteFideId "3805662"]
[BlackFideId "5078776"]
[WhiteElo "2690"]
[BlackElo "2575"]
[Result "1-0"]
[Round "08"]
[TimeControl "180+1"]
[Date "2022.05.31"]
[WhiteClock "0:00:31"]
[BlackClock "0:00:06"]

1. e4 {[%clk 0:03:00]}  Nf6 {[%clk 0:02:58]} 2. e5 {[%clk 0:03:01]}  Nd5 {[%clk 0:02:58]} 3. d4 {[%clk 0:03:01]}  d6 {[%clk 0:02:59]} 4. c4 {[%clk 0:03:01]}  Nb6 {[%clk 0:02:59]} 5. exd6 {[%clk 0:03:02]}  cxd6 {[%clk 0:02:59]} 6. Nc3 {[%clk 0:02:58]}  g6 {[%clk 0:02:59]} 7. Be3 {[%clk 0:02:58]}  Bg7 {[%clk 0:02:59]} 8. Rc1 {[%clk 0:02:59]}  O-O {[%clk 0:02:57]} 9. b3 {[%clk 0:02:59]}  e5 {[%clk 0:02:51]} 10. dxe5 {[%clk 0:02:56]}  dxe5 {[%clk 0:02:52]} 11. Qxd8 {[%clk 0:02:55]}  Rxd8 {[%clk 0:02:53]} 12. c5 {[%clk 0:02:54]}  N6d7 {[%clk 0:02:14]} 13. Bc4 {[%clk 0:02:54]}  Nc6 {[%clk 0:02:04]} 14. Nf3 {[%clk 0:02:53]}  h6 {[%clk 0:01:59]} 15. O-O {[%clk 0:02:53]}  Nd4 {[%clk 0:01:56]} 16. Ne4 {[%clk 0:02:25]}  Nf8 {[%clk 0:01:34]} 17. Bxd4 {[%clk 0:02:00]}  exd4 {[%clk 0:01:33]} 18. Nd6 {[%clk 0:02:01]}  Ne6 {[%clk 0:01:13]} 19. Rfe1 {[%clk 0:02:01]}  Bd7 {[%clk 0:00:42]} 20. Nxb7 {[%clk 0:01:53]}  Rdc8 {[%clk 0:00:43]} 21. Nd6 {[%clk 0:01:46]}  Rc7 {[%clk 0:00:40]} 22. b4 {[%clk 0:01:43]}  a5 {[%clk 0:00:40]} 23. b5 {[%clk 0:01:37]}  Nxc5 {[%clk 0:00:31]} 24. Re7 {[%clk 0:00:59]}  Rb8 {[%clk 0:00:11]} 25. Rxf7 {[%clk 0:00:49]}  Kh8 {[%clk 0:00:07]} 26. Rd1 {[%clk 0:00:33]}  Rb6 {[%clk 0:00:06]} 27. Ne8 {[%clk 0:00:31]} 1-0


[Site "https://www.chess.com"]

[Event "Titled Tuesday Blitz May 31 Early 2022"]
[White "Molina, Roberto Junio Brito"]
[Black "Sargsyan, Anna M."]
[WhiteFideId "2109450"]
[BlackFideId "13308130"]
[WhiteElo "2432"]
[BlackElo "2271"]
[Result "1-0"]
[Round "08"]
[TimeControl "180+1"]
[Date "2022.06.01"]
[WhiteClock "0:00:46"]
[BlackClock "0:01:32"]

1. d4 {[%clk 0:03:00]}  d5 {[%clk 0:02:59]} 2. c4 {[%clk 0:03:00]}  c6 {[%clk 0:03:00]} 3. Nf3 {[%clk 0:02:57]}  Nf6 {[%clk 0:02:59]} 4. Nc3 {[%clk 0:02:57]}  dxc4 {[%clk 0:02:58]} 5. a4 {[%clk 0:02:56]}  Bf5 {[%clk 0:02:59]} 6. Ne5 {[%clk 0:02:56]}  Nbd7 {[%clk 0:02:58]} 7. Nxc4 {[%clk 0:02:56]}  Qc7 {[%clk 0:02:58]} 8. g3 {[%clk 0:02:56]}  e5 {[%clk 0:02:59]} 9. dxe5 {[%clk 0:02:56]}  Nxe5 {[%clk 0:03:00]} 10. Bf4 {[%clk 0:02:56]}  Nfd7 {[%clk 0:03:00]} 11. Bg2 {[%clk 0:02:55]}  g5 {[%clk 0:03:01]} 12. Bxe5 {[%clk 0:02:56]}  Nxe5 {[%clk 0:03:00]} 13. Qd4 {[%clk 0:02:56]}  f6 {[%clk 0:02:54]} 14. Ne3 {[%clk 0:02:48]}  Bg6 {[%clk 0:02:50]} 15. Be4 {[%clk 0:02:15]}  Bf7 {[%clk 0:02:41]} 16. O-O-O {[%clk 0:02:02]}  c5 {[%clk 0:02:27]} 17. Ned5 {[%clk 0:01:28]}  Bxd5 {[%clk 0:02:15]} 18. Nxd5 {[%clk 0:01:12]}  Qf7 {[%clk 0:02:05]} 19. Qc3 {[%clk 0:01:06]}  Rc8 {[%clk 0:01:32]} 20. f4 {[%clk 0:00:45]}  gxf4 {[%clk 0:01:32]} 21. gxf4 {[%clk 0:00:46]} 1-0


[Site "https://www.chess.com"]

[Event "Titled Tuesday Blitz May 31 Early 2022"]
[White "Muradov, Soltan"]
[Black "Ismayil, Malak"]
[WhiteFideId "14002108"]
[BlackFideId "13412604"]
[WhiteElo "1854"]
[BlackElo "1879"]
[Result "0-1"]
[Round "08"]
[TimeControl "180+1"]
[Date "2022.06.01"]
[WhiteClock "0:00:03"]
[BlackClock "0:00:07"]

1. e4 {[%clk 0:02:54]}  e5 {[%clk 0:02:58]} 2. Nf3 {[%clk 0:02:51]}  Nc6 {[%clk 0:02:56]} 3. Nc3 {[%clk 0:02:51]}  Nf6 {[%clk 0:02:53]} 4. Bb5 {[%clk 0:02:50]}  d6 {[%clk 0:02:47]} 5. d4 {[%clk 0:02:47]}  exd4 {[%clk 0:02:47]} 6. Nxd4 {[%clk 0:02:47]}  Bd7 {[%clk 0:02:47]} 7. O-O {[%clk 0:02:45]}  Be7 {[%clk 0:02:46]} 8. Re1 {[%clk 0:02:44]}  O-O {[%clk 0:02:44]} 9. Nf5 {[%clk 0:02:38]}  Bxf5 {[%clk 0:02:40]} 10. exf5 {[%clk 0:02:39]}  Nd7 {[%clk 0:02:39]} 11. Nd5 {[%clk 0:02:30]}  Bf6 {[%clk 0:02:36]} 12. c3 {[%clk 0:02:17]}  Ne7 {[%clk 0:02:14]} 13. Nxf6+ {[%clk 0:01:26]}  Nxf6 {[%clk 0:02:01]} 14. Bg5 {[%clk 0:01:26]}  c6 {[%clk 0:01:30]} 15. Ba4 {[%clk 0:01:09]}  Ned5 {[%clk 0:01:26]} 16. c4 {[%clk 0:01:07]}  Nb6 {[%clk 0:01:25]} 17. Bb3 {[%clk 0:01:03]}  Kh8 {[%clk 0:01:21]} 18. Qd4 {[%clk 0:00:58]}  h6 {[%clk 0:01:07]} 19. Bh4 {[%clk 0:00:57]}  d5 {[%clk 0:00:59]} 20. cxd5 {[%clk 0:00:46]}  Nbxd5 {[%clk 0:00:56]} 21. Rad1 {[%clk 0:00:46]}  Qb6 {[%clk 0:00:51]} 22. Qd2 {[%clk 0:00:32]}  Rad8 {[%clk 0:00:44]} 23. Qc1 {[%clk 0:00:31]}  Qb4 {[%clk 0:00:30]} 24. Bg3 {[%clk 0:00:24]}  Nb6 {[%clk 0:00:28]} 25. h3 {[%clk 0:00:22]}  Rxd1 {[%clk 0:00:26]} 26. Rxd1 {[%clk 0:00:22]}  Ne4 {[%clk 0:00:26]} 27. Bf4 {[%clk 0:00:19]}  Qb5 {[%clk 0:00:23]} 28. Bxh6 {[%clk 0:00:14]}  Qxf5 {[%clk 0:00:21]} 29. Be3 {[%clk 0:00:12]}  Nd5 {[%clk 0:00:20]} 30. Bc2 {[%clk 0:00:10]}  Ndf6 {[%clk 0:00:18]} 31. Bxa7 {[%clk 0:00:06]}  Qe5 {[%clk 0:00:16]} 32. Be3 {[%clk 0:00:06]}  c5 {[%clk 0:00:13]} 33. Re1 {[%clk 0:00:06]}  Qh5 {[%clk 0:00:12]} 34. Qb1 {[%clk 0:00:05]}  Re8 {[%clk 0:00:06]} 35. Bf4 {[%clk 0:00:03]}  c4 {[%clk 0:00:05]} 36. Be3 {[%clk 0:00:03]}  Nd6 {[%clk 0:00:04]} 37. Bd4 {[%clk 0:00:03]}  Rxe1+ {[%clk 0:00:04]} 38. Qxe1 {[%clk 0:00:04]}  Nde8 {[%clk 0:00:04]} 39. Qe7 {[%clk 0:00:02]}  Qd5 {[%clk 0:00:04]} 40. Qf8+ {[%clk 0:00:02]}  Ng8 {[%clk 0:00:04]} 41. Qxe8 {[%clk 0:00:02]}  Qxd4 {[%clk 0:00:04]} 42. Qe2 {[%clk 0:00:02]}  Qxb2 {[%clk 0:00:03]} 43. Qh5+ {[%clk 0:00:02]}  Nh6 {[%clk 0:00:04]} 44. Qe2 {[%clk 0:00:01]}  Qa1+ {[%clk 0:00:04]} 45. Kh2 {[%clk 0:00:01]}  Qf6 {[%clk 0:00:04]} 46. Qe8+ {[%clk 0:00:01]}  Ng8 {[%clk 0:00:05]} 47. Qb5 {[%clk 0:00:02]}  Qf4+ {[%clk 0:00:05]} 48. Kg1 {[%clk 0:00:01]}  Qc1+ {[%clk 0:00:05]} 49. Kh2 {[%clk 0:00:02]}  Qxc2 {[%clk 0:00:06]} 50. Qxb7 {[%clk 0:00:02]}  Qxf2 {[%clk 0:00:06]} 51. Kh1 {[%clk 0:00:02]}  Qf1+ {[%clk 0:00:05]} 52. Kh2 {[%clk 0:00:03]}  c3 {[%clk 0:00:06]} 53. Qc8 {[%clk 0:00:02]}  Qf4+ {[%clk 0:00:05]} 54. Kh1 {[%clk 0:00:02]}  Qc1+ {[%clk 0:00:06]} 55. Kh2 {[%clk 0:00:02]}  c2 {[%clk 0:00:07]} 56. Qc5 {[%clk 0:00:03]}  Qf4+ {[%clk 0:00:06]} 57. g3 {[%clk 0:00:02]}  c1=Q {[%clk 0:00:07]} 58. gxf4 {[%clk 0:00:03]}  Qxc5 {[%clk 0:00:07]} 0-1


[Site "https://www.chess.com"]

[Event "Titled Tuesday Blitz May 31 Early 2022"]
[White "Pakleza, Zbigniew"]
[Black "Hosseinzadeh, Nima"]
[WhiteFideId "1119290"]
[BlackFideId "12505323"]
[WhiteElo "2467"]
[BlackElo "2066"]
[Result "1-0"]
[Round "08"]
[TimeControl "180+1"]
[Date "2022.06.01"]
[WhiteClock "0:00:21"]
[BlackClock "0:00:02"]

1. d4 {[%clk 0:03:00]}  Nf6 {[%clk 0:02:59]} 2. Nf3 {[%clk 0:03:00]}  e6 {[%clk 0:02:59]} 3. Bf4 {[%clk 0:02:59]}  c5 {[%clk 0:02:59]} 4. c3 {[%clk 0:02:59]}  cxd4 {[%clk 0:02:58]} 5. cxd4 {[%clk 0:02:59]}  b6 {[%clk 0:02:57]} 6. Nc3 {[%clk 0:02:59]}  Bb7 {[%clk 0:02:57]} 7. e3 {[%clk 0:02:59]}  Be7 {[%clk 0:02:58]} 8. Bd3 {[%clk 0:02:58]}  O-O {[%clk 0:02:58]} 9. O-O {[%clk 0:02:58]}  a6 {[%clk 0:02:58]} 10. Qe2 {[%clk 0:02:57]}  d6 {[%clk 0:02:59]} 11. h3 {[%clk 0:02:57]}  Nbd7 {[%clk 0:02:58]} 12. e4 {[%clk 0:02:55]}  b5 {[%clk 0:02:57]} 13. a3 {[%clk 0:02:49]}  h6 {[%clk 0:02:55]} 14. Rad1 {[%clk 0:02:47]}  Rc8 {[%clk 0:02:48]} 15. e5 {[%clk 0:02:32]}  Nd5 {[%clk 0:02:47]} 16. Nxd5 {[%clk 0:02:29]}  Bxd5 {[%clk 0:02:48]} 17. exd6 {[%clk 0:02:30]}  Bf6 {[%clk 0:02:48]} 18. Rfe1 {[%clk 0:02:23]}  Nb6 {[%clk 0:02:42]} 19. Bb1 {[%clk 0:02:18]}  Re8 {[%clk 0:01:59]} 20. Qd3 {[%clk 0:02:05]}  g6 {[%clk 0:01:59]} 21. Ne5 {[%clk 0:01:58]}  Bc4 {[%clk 0:01:47]} 22. Qg3 {[%clk 0:01:35]}  Bh4 {[%clk 0:01:31]} 23. Qf3 {[%clk 0:01:04]}  Bd5 {[%clk 0:01:21]} 24. Qe3 {[%clk 0:00:55]}  Nc4 {[%clk 0:01:19]} 25. Nxc4 {[%clk 0:00:55]}  Rxc4 {[%clk 0:01:17]} 26. Ba2 {[%clk 0:00:46]}  Bg5 {[%clk 0:01:09]} 27. Bxc4 {[%clk 0:00:43]}  bxc4 {[%clk 0:01:10]} 28. Bxg5 {[%clk 0:00:41]}  hxg5 {[%clk 0:01:11]} 29. Qg3 {[%clk 0:00:34]}  f6 {[%clk 0:00:58]} 30. Re3 {[%clk 0:00:33]}  Kg7 {[%clk 0:00:56]} 31. b3 {[%clk 0:00:26]}  cxb3 {[%clk 0:00:54]} 32. Rc3 {[%clk 0:00:27]}  Rf8 {[%clk 0:00:52]} 33. Rc7+ {[%clk 0:00:24]}  Rf7 {[%clk 0:00:52]} 34. Rdc1 {[%clk 0:00:23]}  b2 {[%clk 0:00:44]} 35. Rb1 {[%clk 0:00:21]}  Qb8 {[%clk 0:00:36]} 36. Qc3 {[%clk 0:00:21]}  Qb5 {[%clk 0:00:02]} 37. Rxb2 {[%clk 0:00:21]}  Qa4 {[%clk 0:00:01]} 38. Rxf7+ {[%clk 0:00:21]}  Kxf7 {[%clk 0:00:02]} 39. Qc7+ {[%clk 0:00:21]} 1-0


[Site "https://www.chess.com"]

[Event "Titled Tuesday Blitz May 31 Early 2022"]
[White "Pinheiro, Iung Alicio de O."]
[Black "Kucuksari, Kaan"]
[WhiteFideId "2104350"]
[BlackFideId "6380166"]
[WhiteElo "2283"]
[BlackElo "2305"]
[Result "1-0"]
[Round "08"]
[TimeControl "180+1"]
[Date "2022.06.01"]
[WhiteClock "0:00:31"]
[BlackClock "0:00:04"]

1. c4 {[%clk 0:03:00]}  g6 {[%clk 0:02:58]} 2. g3 {[%clk 0:03:00]}  Bg7 {[%clk 0:02:58]} 3. Bg2 {[%clk 0:03:00]}  f5 {[%clk 0:02:58]} 4. Nc3 {[%clk 0:03:00]}  Nf6 {[%clk 0:02:58]} 5. d3 {[%clk 0:03:00]}  O-O {[%clk 0:02:58]} 6. e4 {[%clk 0:03:00]}  d6 {[%clk 0:02:58]} 7. Nge2 {[%clk 0:03:00]}  e5 {[%clk 0:02:57]} 8. O-O {[%clk 0:03:00]}  c6 {[%clk 0:02:56]} 9. exf5 {[%clk 0:02:50]}  gxf5 {[%clk 0:02:55]} 10. f4 {[%clk 0:02:50]}  Be6 {[%clk 0:02:43]} 11. Kh1 {[%clk 0:02:49]}  Nbd7 {[%clk 0:02:40]} 12. Be3 {[%clk 0:02:48]}  Qe8 {[%clk 0:02:15]} 13. Qd2 {[%clk 0:02:45]}  Qh5 {[%clk 0:02:13]} 14. Rae1 {[%clk 0:02:41]}  Rae8 {[%clk 0:02:12]} 15. b3 {[%clk 0:02:37]}  Kh8 {[%clk 0:02:09]} 16. fxe5 {[%clk 0:02:32]}  dxe5 {[%clk 0:02:03]} 17. d4 {[%clk 0:02:32]}  Ng4 {[%clk 0:02:02]} 18. Bg1 {[%clk 0:02:32]}  Bg8 {[%clk 0:01:52]} 19. dxe5 {[%clk 0:02:26]}  Ndxe5 {[%clk 0:01:52]} 20. Nf4 {[%clk 0:02:26]}  Qh6 {[%clk 0:01:51]} 21. h3 {[%clk 0:02:22]}  Ng6 {[%clk 0:01:48]} 22. Bd4 {[%clk 0:02:16]}  Rd8 {[%clk 0:01:25]} 23. Bxg7+ {[%clk 0:02:11]}  Qxg7 {[%clk 0:01:26]} 24. Qc1 {[%clk 0:02:04]}  Nxf4 {[%clk 0:01:21]} 25. Qxf4 {[%clk 0:01:30]}  Rd4 {[%clk 0:01:08]} 26. Qf3 {[%clk 0:01:13]}  Ne5 {[%clk 0:01:06]} 27. Qe3 {[%clk 0:01:06]}  Ng6 {[%clk 0:00:36]} 28. Ne2 {[%clk 0:01:00]}  Rdd8 {[%clk 0:00:30]} 29. Nf4 {[%clk 0:01:00]}  Nxf4 {[%clk 0:00:27]} 30. Rxf4 {[%clk 0:00:55]}  Rd6 {[%clk 0:00:20]} 31. Qf2 {[%clk 0:00:53]}  Rg6 {[%clk 0:00:17]} 32. Kh2 {[%clk 0:00:52]}  Rg5 {[%clk 0:00:14]} 33. Re3 {[%clk 0:00:47]}  Qf6 {[%clk 0:00:09]} 34. Ref3 {[%clk 0:00:46]}  Be6 {[%clk 0:00:07]} 35. Qxa7 {[%clk 0:00:45]}  Rfg8 {[%clk 0:00:07]} 36. Qd4 {[%clk 0:00:43]}  Qxd4 {[%clk 0:00:05]} 37. Rxd4 {[%clk 0:00:43]}  R5g7 {[%clk 0:00:05]} 38. Re3 {[%clk 0:00:42]}  Bc8 {[%clk 0:00:05]} 39. h4 {[%clk 0:00:38]}  Rf7 {[%clk 0:00:03]} 40. Rf4 {[%clk 0:00:36]}  Rfg7 {[%clk 0:00:04]} 41. Bh3 {[%clk 0:00:36]}  Rf8 {[%clk 0:00:04]} 42. Ref3 {[%clk 0:00:36]}  Rgf7 {[%clk 0:00:04]} 43. g4 {[%clk 0:00:33]}  Re7 {[%clk 0:00:04]} 44. g5 {[%clk 0:00:31]}  Re2+ {[%clk 0:00:04]} 45. Kg3 {[%clk 0:00:32]}  Rxa2 {[%clk 0:00:04]} 46. Bxf5 {[%clk 0:00:32]}  Bxf5 {[%clk 0:00:05]} 47. Rxf5 {[%clk 0:00:33]}  Rg8 {[%clk 0:00:05]} 48. Kg4 {[%clk 0:00:32]}  Rg2+ {[%clk 0:00:05]} 49. Kh5 {[%clk 0:00:32]}  Rb2 {[%clk 0:00:04]} 50. Rf7 {[%clk 0:00:32]}  Rxb3 {[%clk 0:00:04]} 51. Rxb3 {[%clk 0:00:31]} 1-0


[Site "https://www.chess.com"]

[Event "Titled Tuesday Blitz May 31 Early 2022"]
[White "Potapova, Margarita"]
[Black "Fernandez Siles, Luis"]
[WhiteFideId "14126869"]
[BlackFideId "2209420"]
[WhiteElo "2216"]
[BlackElo "2212"]
[Result "1-0"]
[Round "08"]
[TimeControl "180+1"]
[Date "2022.06.01"]
[WhiteClock "0:00:06"]
[BlackClock "0:00:01"]

1. d4 {[%clk 0:03:00]}  Nf6 {[%clk 0:02:59]} 2. Bg5 {[%clk 0:03:01]}  e6 {[%clk 0:02:55]} 3. e4 {[%clk 0:03:01]}  h6 {[%clk 0:02:54]} 4. Bxf6 {[%clk 0:03:01]}  Qxf6 {[%clk 0:02:55]} 5. c3 {[%clk 0:03:01]}  c5 {[%clk 0:02:42]} 6. e5 {[%clk 0:02:38]}  Qd8 {[%clk 0:02:38]} 7. Nf3 {[%clk 0:02:35]}  Nc6 {[%clk 0:02:36]} 8. Bd3 {[%clk 0:02:35]}  d6 {[%clk 0:02:35]} 9. O-O {[%clk 0:02:33]}  cxd4 {[%clk 0:02:28]} 10. exd6 {[%clk 0:02:24]}  Qxd6 {[%clk 0:02:25]} 11. cxd4 {[%clk 0:02:22]}  Be7 {[%clk 0:02:20]} 12. Nc3 {[%clk 0:02:23]}  O-O {[%clk 0:02:15]} 13. d5 {[%clk 0:01:53]}  exd5 {[%clk 0:02:05]} 14. Nxd5 {[%clk 0:01:54]}  Be6 {[%clk 0:02:01]} 15. Nxe7+ {[%clk 0:01:49]}  Qxe7 {[%clk 0:02:02]} 16. a3 {[%clk 0:01:44]}  Qf6 {[%clk 0:01:58]} 17. Qe2 {[%clk 0:01:34]}  Bd5 {[%clk 0:01:50]} 18. Rfe1 {[%clk 0:01:09]}  Rad8 {[%clk 0:01:40]} 19. Rad1 {[%clk 0:00:37]}  Rd6 {[%clk 0:01:21]} 20. Bc4 {[%clk 0:00:24]}  Bxf3 {[%clk 0:00:56]} 21. Qxf3 {[%clk 0:00:20]}  Qxf3 {[%clk 0:00:54]} 22. gxf3 {[%clk 0:00:21]}  Rxd1 {[%clk 0:00:49]} 23. Rxd1 {[%clk 0:00:22]}  Rd8 {[%clk 0:00:43]} 24. Re1 {[%clk 0:00:20]}  Kf8 {[%clk 0:00:39]} 25. Re2 {[%clk 0:00:08]}  g6 {[%clk 0:00:25]} 26. Kg2 {[%clk 0:00:08]}  Rd4 {[%clk 0:00:26]} 27. Bb5 {[%clk 0:00:06]}  Ne7 {[%clk 0:00:22]} 28. Rc2 {[%clk 0:00:06]}  Rd5 {[%clk 0:00:20]} 29. Be2 {[%clk 0:00:05]}  Rg5+ {[%clk 0:00:20]} 30. Kf1 {[%clk 0:00:05]}  Nd5 {[%clk 0:00:21]} 31. Rc8+ {[%clk 0:00:05]}  Kg7 {[%clk 0:00:21]} 32. Rb8 {[%clk 0:00:06]}  b6 {[%clk 0:00:19]} 33. Rb7 {[%clk 0:00:06]}  a5 {[%clk 0:00:18]} 34. Bc4 {[%clk 0:00:07]}  Rf5 {[%clk 0:00:18]} 35. Bxd5 {[%clk 0:00:07]}  Rxd5 {[%clk 0:00:18]} 36. Rxb6 {[%clk 0:00:08]}  Rd2 {[%clk 0:00:16]} 37. Ke1 {[%clk 0:00:07]}  Rc2 {[%clk 0:00:16]} 38. Kf1 {[%clk 0:00:07]}  h5 {[%clk 0:00:15]} 39. Kg2 {[%clk 0:00:07]}  g5 {[%clk 0:00:14]} 40. Kg3 {[%clk 0:00:06]}  f6 {[%clk 0:00:14]} 41. Rb5 {[%clk 0:00:04]}  Kg6 {[%clk 0:00:13]} 42. a4 {[%clk 0:00:04]}  h4+ {[%clk 0:00:07]} 43. Kg2 {[%clk 0:00:04]}  Rd2 {[%clk 0:00:07]} 44. b3 {[%clk 0:00:04]}  Rb2 {[%clk 0:00:07]} 45. Kf1 {[%clk 0:00:04]}  Kh5 {[%clk 0:00:05]} 46. h3 {[%clk 0:00:04]}  Kg6 {[%clk 0:00:05]} 47. Kg2 {[%clk 0:00:04]}  Kg7 {[%clk 0:00:04]} 48. f4 {[%clk 0:00:04]}  Kg6 {[%clk 0:00:03]} 49. f5+ {[%clk 0:00:04]}  Kf7 {[%clk 0:00:02]} 50. Kf3 {[%clk 0:00:05]}  Rc2 {[%clk 0:00:01]} 51. Ke3 {[%clk 0:00:05]}  Rc3+ {[%clk 0:00:01]} 52. Ke2 {[%clk 0:00:05]}  Rxh3 {[%clk 0:00:01]} 53. Rb7+ {[%clk 0:00:05]}  Kf8 {[%clk 0:00:01]} 54. f3 {[%clk 0:00:06]} 1-0


[Site "https://www.chess.com"]